[Event "XX Gran Hotel Bali-B 2023"]
[Site "Benidorm"]
[Date "2023.12.06"]
[Round "7.4"]
[White "Giron Herranz, Juan"]
[Black "Fabre Massana, Miquel"]
[Result "0-1"]
[ECO "D35"]
[WhiteElo "1846"]
[BlackElo "1982"]
[Annotator "NA RC"]
[PlyCount "90"]
[EventDate "2023.12.02"]
[EventType "swiss"]
[EventCountry "ESP"]
[SourceTitle "playchess.com"]
[Source "ChessBase"]
[SourceQuality "1"]
[TimeControl "5400+30"]

1. d4 {[%emt 0:03:12]} d5 {[%emt 0:00:07]} 2. c4 {[%emt 0:00:03]} e6 {[%emt 0:00:36]} 3. Nc3 {[%emt 0:00:45]} c6 {[%emt 0:00:15]} 4. cxd5 {[%emt 0:00:24]} exd5 {[%emt 0:01:37]} 5. Nf3 {[%emt 0:00:04]} Nf6 {[%emt 0:00:46]} 6. Bg5 {[%emt 0:00:11]} Be7 {[%emt 0:00:32]} 7. e3 {[%emt 0:00:09]} Bf5 {[%emt 0:01:25]} 8. Bd3 {[%emt 0:11:27]} Bxd3 {[%emt 0:00:32]} 9. Qxd3 {[%emt 0:00:04]} Nbd7 {[%emt 0:01:11]} 10. O-O {[%emt 0:00:11]} O-O {[%emt 0:00:51]} 11. a3 {[%emt 0:04:33]} Re8 {[%emt 0:02:48]} 12. b4 {[%emt 0:01:22]} Ne4 {[%emt 0:03:13]} 13. Bxe7 {[%emt 0:00:57]} Qxe7 {[%emt 0:00:38]} 14. Nd2 {[%emt 0:10:27]} Nxd2 {[%emt 0:01:39]} 15. Qxd2 {[%emt 0:00:05]} Nb6 {[%emt 0:00:50]} 16. Qd3 {[%emt 0:14:36]} a6 {[%emt 0:03:24]} 17. Rfb1 {[%emt 0:05:16]} g6 {[%emt 0:05:12]} 18. a4 {[%emt 0:02:11]} Nc4 {[%emt 0:04:00]} 19. e4 {[%emt 0:02:56]} Qg5 {[%emt 0:02:06]} 20. exd5 {[%emt 0:10:41]} cxd5 {[%emt 0:02:15]} 21. h4 {[%emt 0:03:48]} Qh5 {[%emt 0:03:27]} 22. Re1 {[%emt 0:01:26]} Nd6 {[%emt 0:01:57]} 23. g3 {[%emt 0:02:13]} Kf8 {[%emt 0:04:02]} 24. Rac1 {[%emt 0:13:12]} Qf5 {[%emt 0:04:32]} 25. Qd2 {[%emt 0:05:02]} Kg7 {[%emt 0:01:35]} 26. Re5 {[%emt 0:01:48]} Rxe5 {[%emt 0:01:49]} 27. dxe5 {[%emt 0:00:04]} Ne4 {[%emt 0:00:25]} 28. Nxe4 {[%emt 0:00:33]} Qxe4 {[%emt 0:07:01]} 29. Re1 {[%emt 0:00:10]} Qc4 {[%emt 0:01:24]} 30. e6 {[%emt 0:01:57]} Re8 {[%emt 0:02:09]} 31. Rc1 {[%emt 0:01:13]} Qe4 {[%emt 0:01:26]} 32. exf7 {[%emt 0:00:08]} Kxf7 {[%emt 0:01:34]} 33. Rc7+ {[%emt 0:00:33]} Re7 {[%emt 0:00:53]} 34. Rxe7+ {[%emt 0:00:38]} Kxe7 {[%emt 0:01:26]} 35. Kf1 {[%emt 0:03:24]} Kd6 {[%emt 0:01:13]} 36. a5 {[%emt 0:01:11]} d4 {[%emt 0:01:04]} 37. Qg5 {[%emt 0:01:13]} d3 {[%emt 0:01:15]} 38. Qd8+ {[%emt 0:00:18]} Ke6 {[%emt 0:01:58]} 39. Qe8+ {[%emt 0:00:20]} Kd5 {[%emt 0:00:48]} 40. Qf7+ {[%emt 0:00:41]} Kd4 {[%emt 0:00:42]} 41. f3 {[%emt 0:01:03]} Qe2+ {[%emt 0:00:36]} 42. Kg1 {[%emt 0:00:06]} d2 {[%emt 0:00:57]} 43. Qf4+ {[%emt 0:00:46]} Kc3 {[%emt 0:02:05]} 44. Qc7+ {[%emt 0:00:34]} Kb3 {[%emt 0:00:26]} 45. Qf7+ {[%emt 0:00:07]} Ka3 {[%emt 0:00:19]} 0-1

[Event "XX Gran Hotel Bali-B 2023"]
[Site "Benidorm"]
[Date "2023.12.06"]
[Round "7.5"]
[White "Gyaneshwar B"]
[Black "Lloret Climent, Miguel"]
[Result "1/2-1/2"]
[ECO "E60"]
[WhiteElo "1712"]
[BlackElo "1954"]
[Annotator "NA"]
[PlyCount "93"]
[EventDate "2023.12.02"]
[EventType "swiss"]
[EventCountry "ESP"]
[SourceTitle "playchess.com"]
[Source "ChessBase"]
[SourceQuality "1"]
[TimeControl "5400+30"]

1. d4 {[%emt 0:08:09]} Nf6 {[%emt 0:00:13]} 2. c4 {[%emt 0:00:58]} d6 {[%emt 0:00:31]} 3. Nf3 {[%emt 0:04:02]} g6 {[%emt 0:00:26]} 4. g3 {[%emt 0:00:22]} Bg7 {[%emt 0:00:20]} 5. Bg2 {[%emt 0:00:27]} c6 {[%emt 0:00:40]} 6. Nc3 {[%emt 0:01:48]} Bf5 {[%emt 0:00:34]} 7. Nh4 {[%emt 0:05:44]} Bd7 {[%emt 0:01:48]} 8. e4 {[%emt 0:00:59]} e5 {[%emt 0:00:43]} 9. dxe5 {[%emt 0:14:34]} dxe5 {[%emt 0:00:17]} 10. Qd6 {[%emt 0:00:59]} Qe7 {[%emt 0:09:09]} 11. Qxe7+ {[%emt 0:00:40]} Kxe7 {[%emt 0:00:09]} 12. Nf3 {[%emt 0:00:18]} Nh5 {[%emt 0:03:10]} 13. b3 {[%emt 0:02:53]} Rd8 {[%emt 0:02:23]} 14. Ba3+ {[%emt 0:02:53]} Ke8 {[%emt 0:01:11]} 15. O-O-O {[%emt 0:04:14]} f6 {[%emt 0:03:42]} 16. Nd2 {[%emt 0:10:12]} Bf8 {[%emt 0:02:41]} 17. Bxf8 {[%emt 0:04:13]} Kxf8 {[%emt 0:00:12]} 18. b4 {[%emt 0:07:58]} Na6 {[%emt 0:01:08]} 19. a3 {[%emt 0:00:26]} Nc7 {[%emt 0:03:59]} 20. c5 {[%emt 0:02:53]} Be6 {[%emt 0:02:15]} 21. Bf1 {[%emt 0:01:35]} Ke7 {[%emt 0:04:51]} 22. Be2 {[%emt 0:01:55]} Ng7 {[%emt 0:02:50]} 23. Kb2 {[%emt 0:05:02]} Rd7 {[%emt 0:05:18]} 24. Nf3 {[%emt 0:01:45]} Rad8 {[%emt 0:02:20]} 25. Rxd7+ {[%emt 0:00:34]} Rxd7 {[%emt 0:00:14]} 26. Rd1 {[%emt 0:00:24]} Bg4 {[%emt 0:04:41]} 27. Rxd7+ {[%emt 0:00:08]} Bxd7 {[%emt 0:00:10]} 28. Nd2 {[%emt 0:02:35]} Nge6 {[%emt 0:03:20]} 29. Nc4 {[%emt 0:16:20]} Nd4 {[%emt 0:00:34]} 30. Bd1 {[%emt 0:00:00]} Be6 {[%emt 0:04:42]} 31. Na5 {[%emt 0:00:00]} b6 {[%emt 0:04:26]} 32. cxb6 {[%emt 0:00:00]} axb6 {[%emt 0:00:27]} 33. Nb3 {[%emt 0:00:00]} Kd6 {[%emt 0:04:33]} 34. Na4 {[%emt 0:00:00]} Na8 {[%emt 0:02:09]} 35. Kc3 {[%emt 0:00:00]} Nb5+ {[%emt 0:01:00]} 36. Kb2 {[%emt 0:00:00]} Bc4 {[%emt 0:01:15]} 37. Nd2 {[%emt 0:00:00]} Bd3 {[%emt 0:01:32]} 38. Bb3 {[%emt 0:00:00]} g5 {[%emt 0:06:15]} 39. Bc4 {[%emt 0:00:00]} Bxc4 {[%emt 0:00:52]} 40. Nxc4+ {[%emt 0:00:00]} Kc7 {[%emt 0:00:18]} 41. Nc3 {[%emt 0:01:01]} Nd4 {[%emt 0:00:54]} 42. Ne3 {[%emt 0:00:20]} Kd6 {[%emt 0:01:52]} 43. a4 {[%emt 0:02:19]} Nc7 {[%emt 0:01:30]} 44. Nc4+ {[%emt 0:00:26]} Ke6 {[%emt 0:01:52]} 45. Nxb6 {[%emt 0:00:10]} Na6 {[%emt 0:01:12]} 46. Na2 {[%emt 0:02:27]} Nf3 {[%emt 0:01:00]} 47. h3 {[%emt 0:01:03]} 1/2-1/2

[Event "XX Gran Hotel Bali-B 2023"]
[Site "Benidorm"]
[Date "2023.12.06"]
[Round "7.6"]
[White "Perez Garcia, Juan Angel"]
[Black "Ionita, Emilian-Paul"]
[Result "0-1"]
[ECO "D02"]
[WhiteElo "1948"]
[BlackElo "1899"]
[Annotator "NA RC"]
[PlyCount "144"]
[EventDate "2023.12.02"]
[EventType "swiss"]
[EventCountry "ESP"]
[SourceTitle "playchess.com"]
[Source "ChessBase"]
[SourceQuality "1"]
[TimeControl "5400+30"]

1. d4 {[%emt 0:00:03]} Nf6 {[%emt 0:00:13]} 2. Bf4 {[%emt 0:00:10]} e6 {[%emt 0:00:02]} 3. e3 {[%emt 0:00:22]} c5 {[%emt 0:00:31]} 4. c3 {[%emt 0:00:54]} b6 {[%emt 0:01:43]} 5. Nd2 {[%emt 0:00:35]} Bb7 {[%emt 0:00:13]} 6. Ngf3 {[%emt 0:00:55]} Be7 {[%emt 0:01:06]} 7. h3 {[%emt 0:00:13]} O-O {[%emt 0:00:57]} 8. Bd3 {[%emt 0:00:23]} d5 {[%emt 0:00:46]} 9. O-O {[%emt 0:00:49]} Re8 {[%emt 0:00:51]} 10. Re1 {[%emt 0:05:21]} Ne4 {[%emt 0:04:48]} 11. Qc2 {[%emt 0:00:51]} f5 {[%emt 0:01:16]} 12. Ne5 {[%emt 0:00:24]} Nxd2 {[%emt 0:02:12]} 13. Qxd2 {[%emt 0:00:16]} Nd7 {[%emt 0:04:30]} 14. Bb5 {[%emt 0:02:32]} Nxe5 {[%emt 0:00:14]} 15. Bxe5 {[%emt 0:00:35]} Rf8 {[%emt 0:00:08]} 16. f3 {[%emt 0:02:17]} Bf6 {[%emt 0:02:38]} 17. Bf4 {[%emt 0:02:17]} Qe7 {[%emt 0:04:14]} 18. Rad1 {[%emt 0:06:45]} Rad8 {[%emt 0:06:22]} 19. Bd3 {[%emt 0:08:25]} e5 {[%emt 0:13:12]} 20. dxe5 {[%emt 0:01:43]} Bxe5 {[%emt 0:00:23]} 21. Qc2 {[%emt 0:01:30]} Bc8 {[%emt 0:11:30]} 22. Bxe5 {[%emt 0:06:11]} Qxe5 {[%emt 0:02:55]} 23. e4 {[%emt 0:00:21]} fxe4 {[%emt 0:00:45]} 24. fxe4 {[%emt 0:00:28]} d4 {[%emt 0:01:20]} 25. Bc4+ {[%emt 0:05:37]} Kh8 {[%emt 0:00:12]} 26. cxd4 {[%emt 0:01:08]} cxd4 {[%emt 0:05:58]} 27. Bd5 {[%emt 0:00:44]} Be6 {[%emt 0:02:33]} 28. Qc4 {[%emt 0:09:29]} Bxd5 {[%emt 0:02:55]} 29. exd5 {[%emt 0:00:07]} Qxd5 {[%emt 0:00:17]} 30. Qxd5 {[%emt 0:00:47]} Rxd5 {[%emt 0:00:02]} 31. Re7 {[%emt 0:00:44]} a5 {[%emt 0:01:46]} 32. Rd3 {[%emt 0:02:28]} h6 {[%emt 0:03:40]} 33. Re4 {[%emt 0:08:49]} Rfd8 {[%emt 0:01:03]} 34. Kf2 {[%emt 0:00:17]} Kh7 {[%emt 0:01:09]} 35. Ke2 {[%emt 0:00:18]} b5 {[%emt 0:00:53]} 36. Rf3 {[%emt 0:01:45]} Rc5 {[%emt 0:03:21]} 37. Kd3 {[%emt 0:01:12]} Rc1 {[%emt 0:01:30]} 38. Rf2 {[%emt 0:01:19]} Rd1+ {[%emt 0:00:57]} 39. Rd2 {[%emt 0:00:21]} Rxd2+ {[%emt 0:05:22]} 40. Kxd2 {[%emt 0:01:00]} Rf8 {[%emt 0:02:34]} 41. Ke2 {[%emt 0:04:37]} d3+ {[%emt 0:02:23]} 42. Kxd3 {[%emt 0:00:16]} Rf2 {[%emt 0:00:37]} 43. Re2 {[%emt 0:00:07]} Rxe2 {[%emt 0:02:19]} 44. Kxe2 {[%emt 0:00:06]} Kg6 {[%emt 0:00:01]} 45. Ke3 {[%emt 0:00:23]} Kf5 {[%emt 0:00:26]} 46. g3 {[%emt 0:11:27]} Ke5 {[%emt 0:01:03]} 47. b3 {[%emt 0:04:21]} h5 {[%emt 0:02:19]} 48. Kd3 {[%emt 0:05:15]} Kd5 {[%emt 0:01:27]} 49. g4 {[%emt 0:02:40]} hxg4 {[%emt 0:01:03]} 50. hxg4 {[%emt 0:00:07]} Ke5 {[%emt 0:00:40]} 51. g5 {[%emt 0:02:01]} g6 {[%emt 0:01:22]} 52. a4 {[%emt 0:02:04]} bxa4 {[%emt 0:00:38]} 53. bxa4 {[%emt 0:00:02]} Kd5 {[%emt 0:00:01]} 54. Kc3 {[%emt 0:01:32]} Kc5 {[%emt 0:00:06]} 55. Kd3 {[%emt 0:01:28]} Kb4 {[%emt 0:01:53]} 56. Ke4 {[%emt 0:00:07]} Kxa4 {[%emt 0:00:18]} 57. Ke5 {[%emt 0:00:06]} Kb5 {[%emt 0:00:27]} 58. Kf6 {[%emt 0:00:05]} a4 {[%emt 0:00:08]} 59. Kxg6 {[%emt 0:00:06]} a3 {[%emt 0:00:01]} 60. Kh7 {[%emt 0:00:45]} a2 {[%emt 0:00:15]} 61. g6 {[%emt 0:00:07]} a1=Q {[%emt 0:00:13]} 62. g7 {[%emt 0:00:08]} Qh1+ {[%emt 0:00:20]} 63. Kg6 {[%emt 0:00:11]} Qg2+ {[%emt 0:00:02]} 64. Kf7 {[%emt 0:00:16]} Qf3+ {[%emt 0:00:07]} 65. Ke7 {[%emt 0:00:26]} Qg4 {[%emt 0:00:14]} 66. Kf7 {[%emt 0:00:19]} Qf5+ {[%emt 0:00:13]} 67. Ke7 {[%emt 0:00:20]} Qg6 {[%emt 0:00:06]} 68. Kf8 {[%emt 0:00:21]} Qf6+ {[%emt 0:00:16]} 69. Kg8 {[%emt 0:00:20]} Kc6 {[%emt 0:00:14]} 70. Kh7 {[%emt 0:00:16]} Qf7 {[%emt 0:00:06]} 71. Kh8 {[%emt 0:00:16]} Qh5+ {[%emt 0:00:06]} 72. Kg8 {[%emt 0:00:25]} Kd7 {[%emt 0:00:22]} 0-1

[Event "XX Gran Hotel Bali-B 2023"]
[Site "Benidorm"]
[Date "2023.12.06"]
[Round "7.7"]
[White "Lorenzo Calvo, Damian Angel"]
[Black "Sham R"]
[Result "0-1"]
[ECO "A31"]
[WhiteElo "1947"]
[BlackElo "1828"]
[Annotator "NA RC"]
[PlyCount "56"]
[EventDate "2023.12.02"]
[EventType "swiss"]
[EventCountry "ESP"]
[SourceTitle "playchess.com"]
[Source "ChessBase"]
[SourceQuality "1"]
[TimeControl "5400+30"]

1. d4 {[%emt 0:00:01]} c5 {[%emt 0:10:03]} 2. Nf3 {[%emt 0:00:58]} cxd4 {[%emt 0:00:05]} 3. Nxd4 {[%emt 0:00:10]} e5 {[%emt 0:00:07]} 4. Nb3 {[%emt 0:01:28]} d5 {[%emt 0:01:48]} 5. e3 {[%emt 0:01:11]} Nf6 {[%emt 0:00:47]} 6. c4 {[%emt 0:01:55]} Nc6 {[%emt 0:03:42]} 7. Be2 {[%emt 0:05:21]} Bb4+ {[%emt 0:06:35]} 8. Bd2 {[%emt 0:01:43]} dxc4 {[%emt 0:00:13]} 9. Bxc4 {[%emt 0:00:29]} O-O {[%emt 0:00:50]} 10. O-O {[%emt 0:02:41]} Bd6 {[%emt 0:01:32]} 11. Nc3 {[%emt 0:09:43]} e4 {[%emt 0:02:52]} 12. h3 {[%emt 0:04:15]} Ne5 {[%emt 0:10:45]} 13. Be2 {[%emt 0:00:34]} a6 {[%emt 0:00:33]} 14. Qc2 {[%emt 0:04:53]} Bf5 {[%emt 0:06:33]} 15. f4 {[%emt 0:03:45]} exf3 {[%emt 0:03:58]} 16. Qxf5 {[%emt 0:00:09]} fxe2 {[%emt 0:00:19]} 17. Nxe2 {[%emt 0:00:02]} Nc4 {[%emt 0:01:25]} 18. Ned4 {[%emt 0:08:41]} Qe7 {[%emt 0:02:54]} 19. Rae1 {[%emt 0:02:06]} Ne4 {[%emt 0:11:54]} 20. Bc3 {[%emt 0:01:58]} g6 {[%emt 0:03:10]} 21. Qg4 {[%emt 0:03:40]} h5 {[%emt 0:01:40]} 22. Qe2 {[%emt 0:02:56]} Rac8 {[%emt 0:00:59]} 23. Qd3 {[%emt 0:01:51]} f5 {[%emt 0:02:46]} 24. Re2 {[%emt 0:02:16]} Rfd8 {[%emt 0:01:03]} 25. Rd1 {[%emt 0:05:22]} Bb8 {[%emt 0:02:01]} 26. Ree1 {[%emt 0:04:23]} Qd6 {[%emt 0:01:59]} 27. Kf1 {[%emt 0:03:40]} Qh2 {[%emt 0:00:09]} 28. Nf3 {[%emt 0:00:45]} Qh1+ {[%emt 0:00:02]} 0-1

[Event "XX Gran Hotel Bali-B 2023"]
[Site "Benidorm"]
[Date "2023.12.06"]
[Round "7.8"]
[White "Cebrian Flores, Juan Antonio"]
[Black "Kao, Jamison Edrich"]
[Result "0-1"]
[ECO "E04"]
[WhiteElo "1981"]
[BlackElo "1701"]
[Annotator "NA RC"]
[PlyCount "88"]
[EventDate "2023.12.02"]
[EventType "swiss"]
[EventCountry "ESP"]
[SourceTitle "playchess.com"]
[Source "ChessBase"]
[SourceQuality "1"]
[TimeControl "5400+30"]

1. d4 {[%emt 0:00:04]} Nf6 {[%emt 0:00:02]} 2. c4 {[%emt 0:00:18]} e6 {[%emt 0:00:02]} 3. Nf3 {[%emt 0:00:34]} d5 {[%emt 0:00:04]} 4. g3 {[%emt 0:03:41]} dxc4 {[%emt 0:00:57]} 5. Bg2 {[%emt 0:00:11]} a6 {[%emt 0:00:03]} 6. a4 {[%emt 0:02:37]} Nc6 {[%emt 0:01:22]} 7. O-O {[%emt 0:10:40]} Rb8 {[%emt 0:05:48]} 8. e3 {[%emt 0:01:02]} Be7 {[%emt 0:07:40]} 9. Qe2 {[%emt 0:02:42]} Bd7 {[%emt 0:06:37]} 10. Qxc4 {[%emt 0:04:40]} b5 {[%emt 0:00:22]} 11. axb5 {[%emt 0:03:56]} axb5 {[%emt 0:00:44]} 12. Qb3 {[%emt 0:01:39]} O-O {[%emt 0:01:54]} 13. Rd1 {[%emt 0:02:49]} Bd6 {[%emt 0:01:49]} 14. Bd2 {[%emt 0:02:22]} Qe7 {[%emt 0:03:43]} 15. Nc3 {[%emt 0:02:45]} b4 {[%emt 0:00:36]} 16. Ne2 {[%emt 0:00:23]} Rb5 {[%emt 0:04:13]} 17. Qd3 {[%emt 0:05:17]} Rfb8 {[%emt 0:03:54]} 18. Rdc1 {[%emt 0:11:07]} e5 {[%emt 0:06:38]} 19. dxe5 {[%emt 0:05:43]} Nxe5 {[%emt 0:00:06]} 20. Nxe5 {[%emt 0:00:20]} Bxe5 {[%emt 0:00:35]} 21. Nd4 {[%emt 0:01:05]} Bxd4 {[%emt 0:00:23]} 22. Qxd4 {[%emt 0:03:04]} c5 {[%emt 0:00:38]} 23. Qh4 {[%emt 0:00:46]} Qe5 {[%emt 0:03:05]} 24. b3 {[%emt 0:09:23]} g5 {[%emt 0:08:34]} 25. f4 {[%emt 0:06:47]} gxh4 {[%emt 0:01:06]} 26. fxe5 {[%emt 0:00:02]} Ng4 {[%emt 0:00:48]} 27. Bf1 {[%emt 0:05:01]} Be6 {[%emt 0:04:40]} 28. Bxb5 {[%emt 0:00:56]} Rxb5 {[%emt 0:00:03]} 29. e4 {[%emt 0:04:25]} h5 {[%emt 0:08:44]} 30. Bf4 {[%emt 0:00:22]} hxg3 {[%emt 0:02:12]} 31. hxg3 {[%emt 0:01:21]} Bxb3 {[%emt 0:00:35]} 32. Kg2 {[%emt 0:00:49]} Kg7 {[%emt 0:17:32]} 33. Rh1 {[%emt 0:01:17]} Bc2 {[%emt 0:00:05]} 34. Kf3 {[%emt 0:02:20]} b3 {[%emt 0:02:33]} 35. Rxh5 {[%emt 0:00:15]} b2 {[%emt 0:05:50]} 36. Rg5+ {[%emt 0:03:20]} Kf8 {[%emt 0:00:18]} 37. e6 {[%emt 0:01:56]} fxe6 {[%emt 0:03:05]} 38. Bd6+ {[%emt 0:01:28]} Ke8 {[%emt 0:00:03]} 39. Ra7 {[%emt 0:00:48]} Nf6 {[%emt 0:00:41]} 40. Re7+ {[%emt 0:01:34]} Kd8 {[%emt 0:00:05]} 41. Rf7 {[%emt 0:00:36]} Bxe4+ {[%emt 0:00:34]} 42. Kf4 {[%emt 0:00:13]} b1=Q {[%emt 0:00:55]} 43. Be7+ {[%emt 0:00:50]} Ke8 {[%emt 0:01:03]} 44. Rxf6 {[%emt 0:00:29]} Kxe7 {[%emt 0:00:31]} 0-1

[Event "XX Gran Hotel Bali-B 2023"]
[Site "Benidorm"]
[Date "2023.12.06"]
[Round "7.9"]
[White "Alcaraz Soriano, Angela"]
[Black "Ferro Martinez, Damian"]
[Result "1-0"]
[ECO "D24"]
[WhiteElo "1977"]
[BlackElo "1891"]
[Annotator "NA RC"]
[PlyCount "95"]
[EventDate "2023.12.02"]
[EventType "swiss"]
[EventCountry "ESP"]
[SourceTitle "playchess.com"]
[Source "ChessBase"]
[SourceQuality "1"]
[TimeControl "5400+30"]

1. d4 {[%emt 0:00:09]} d5 {[%emt 0:01:08]} 2. c4 {[%emt 0:00:35]} e6 {[%emt 0:00:23]} 3. Nf3 {[%emt 0:04:47]} Nf6 {[%emt 0:01:54]} 4. Bg5 {[%emt 0:00:22]} dxc4 {[%emt 0:01:44]} 5. Nc3 {[%emt 0:00:38]} c5 {[%emt 0:04:57]} 6. e4 {[%emt 0:05:07]} cxd4 {[%emt 0:00:57]} 7. Qxd4 {[%emt 0:02:25]} Qxd4 {[%emt 0:00:13]} 8. Nxd4 {[%emt 0:00:10]} a6 {[%emt 0:00:05]} 9. Bxc4 {[%emt 0:05:53]} h6 {[%emt 0:00:46]} 10. Bxf6 {[%emt 0:04:07]} gxf6 {[%emt 0:00:07]} 11. Rc1 {[%emt 0:00:08]} Bd7 {[%emt 0:01:08]} 12. Ke2 {[%emt 0:06:14]} Bc5 {[%emt 0:01:50]} 13. Rhd1 {[%emt 0:03:28]} Nc6 {[%emt 0:02:55]} 14. Nb3 {[%emt 0:06:37]} Ba7 {[%emt 0:00:28]} 15. a4 {[%emt 0:01:38]} Ne5 {[%emt 0:15:42]} 16. Bd3 {[%emt 0:13:58]} Ng4 {[%emt 0:00:45]} 17. Bb1 {[%emt 0:06:28]} Nxf2 {[%emt 0:03:40]} 18. Rf1 {[%emt 0:04:24]} Ng4 {[%emt 0:00:10]} 19. Na5 {[%emt 0:03:51]} Ke7 {[%emt 0:03:08]} 20. Nd1 {[%emt 0:07:49]} Ne5 {[%emt 0:11:07]} 21. Nxb7 {[%emt 0:01:30]} Rab8 {[%emt 0:00:39]} 22. Nc5 {[%emt 0:01:08]} Rhc8 {[%emt 0:00:59]} 23. Nxd7 {[%emt 0:01:26]} Rxc1 {[%emt 0:05:46]} 24. Nxb8 {[%emt 0:00:07]} Rxb1 {[%emt 0:00:56]} 25. Nxa6 {[%emt 0:00:31]} Nc4 {[%emt 0:00:19]} 26. b4 {[%emt 0:00:56]} Ra1 {[%emt 0:10:30]} 27. a5 {[%emt 0:05:11]} Ra2+ {[%emt 0:04:16]} 28. Kd3 {[%emt 0:04:50]} Ne5+ {[%emt 0:02:49]} 29. Kc3 {[%emt 0:00:08]} Rxg2 {[%emt 0:03:53]} 30. Nb2 {[%emt 0:05:00]} Nc6 {[%emt 0:01:24]} 31. Nc4 {[%emt 0:00:55]} Nd4 {[%emt 0:04:55]} 32. Nb6 {[%emt 0:02:15]} Nb5+ {[%emt 0:02:43]} 33. Kc4 {[%emt 0:00:59]} Nd6+ {[%emt 0:00:02]} 34. Kd3 {[%emt 0:01:15]} Ra2 {[%emt 0:02:07]} 35. Nc5 {[%emt 0:00:40]} Rb2 {[%emt 0:02:45]} 36. Kc3 {[%emt 0:00:42]} Rxh2 {[%emt 0:00:03]} 37. Rd1 {[%emt 0:00:14]} Rh3+ {[%emt 0:01:16]} 38. Kc2 {[%emt 0:00:00]} h5 {[%emt 0:05:42]} 39. Rb1 {[%emt 0:01:54]} Rh2+ {[%emt 0:01:53]} 40. Kd3 {[%emt 0:00:00]} Ra2 {[%emt 0:01:03]} 41. Nca4 {[%emt 0:01:08]} h4 {[%emt 0:00:29]} 42. Rc1 {[%emt 0:00:16]} Kd8 {[%emt 0:01:16]} 43. Rc6 {[%emt 0:00:29]} Ra3+ {[%emt 0:01:24]} 44. Kc2 {[%emt 0:00:08]} Nb5 {[%emt 0:00:51]} 45. Rc8+ {[%emt 0:00:02]} Ke7 {[%emt 0:00:01]} 46. Rh8 {[%emt 0:00:58]} h3 {[%emt 0:00:01]} 47. Nc5 {[%emt 0:01:16]} h2 {[%emt 0:00:15]} 48. Nc8# {[%emt 0:00:12]} 1-0

[Event "XX Gran Hotel Bali-B 2023"]
[Site "Benidorm"]
[Date "2023.12.06"]
[Round "7.10"]
[White "Donate Moreno, David"]
[Black "Santamaria Baeza, Adolfo"]
[Result "0-1"]
[ECO "C28"]
[WhiteElo "1951"]
[BlackElo "1885"]
[Annotator "NA RC"]
[PlyCount "70"]
[EventDate "2023.12.02"]
[EventType "swiss"]
[EventCountry "ESP"]
[SourceTitle "playchess.com"]
[Source "ChessBase"]
[SourceQuality "1"]
[TimeControl "5400+30"]

1. e4 {[%emt 0:00:02]} e5 {[%emt 0:02:31]} 2. Bc4 {[%emt 0:00:11]} Nc6 {[%emt 0:05:06]} 3. d3 {[%emt 0:00:27]} Nf6 {[%emt 0:01:54]} 4. Nc3 {[%emt 0:00:37]} Bb4 {[%emt 0:00:51]} 5. Nge2 {[%emt 0:00:52]} d6 {[%emt 0:00:45]} 6. O-O {[%emt 0:01:33]} Bg4 {[%emt 0:01:07]} 7. f3 {[%emt 0:06:05]} Bh5 {[%emt 0:08:49]} 8. Ng3 {[%emt 0:02:49]} Bg6 {[%emt 0:00:34]} 9. Nd5 {[%emt 0:19:43]} Nxd5 {[%emt 0:03:26]} 10. Bxd5 {[%emt 0:07:16]} Bc5+ {[%emt 0:05:29]} 11. Kh1 {[%emt 0:00:31]} Qd7 {[%emt 0:04:52]} 12. c3 {[%emt 0:01:24]} O-O-O {[%emt 0:00:40]} 13. b4 {[%emt 0:05:35]} Bb6 {[%emt 0:00:12]} 14. Qe2 {[%emt 0:07:11]} h5 {[%emt 0:00:26]} 15. a4 {[%emt 0:03:09]} a5 {[%emt 0:02:27]} 16. Be3 {[%emt 0:11:16]} h4 {[%emt 0:00:20]} 17. Bxc6 {[%emt 0:04:42]} bxc6 {[%emt 0:03:32]} 18. Nf5 {[%emt 0:01:38]} Bxf5 {[%emt 0:00:33]} 19. d4 {[%emt 0:03:52]} Qe6 {[%emt 0:05:12]} 20. exf5 {[%emt 0:00:21]} Qxf5 {[%emt 0:00:42]} 21. bxa5 {[%emt 0:00:17]} exd4 {[%emt 0:00:19]} 22. axb6 {[%emt 0:02:43]} dxe3 {[%emt 0:00:16]} 23. a5 {[%emt 0:02:42]} Qc5 {[%emt 0:02:05]} 24. Rfb1 {[%emt 0:02:51]} h3 {[%emt 0:01:31]} 25. b7+ {[%emt 0:02:27]} Kb8 {[%emt 0:00:24]} 26. gxh3 {[%emt 0:02:27]} Rxh3 {[%emt 0:00:49]} 27. Qa6 {[%emt 0:00:14]} Rxh2+ {[%emt 0:06:00]} 28. Kxh2 {[%emt 0:00:02]} Rh8+ {[%emt 0:00:15]} 29. Kg2 {[%emt 0:01:10]} Qg5+ {[%emt 0:00:22]} 30. Kf1 {[%emt 0:00:03]} Rh1+ {[%emt 0:00:27]} 31. Ke2 {[%emt 0:00:05]} Rh2+ {[%emt 0:01:30]} 32. Kd3 {[%emt 0:01:19]} Qd5+ {[%emt 0:05:21]} 33. Kxe3 {[%emt 0:00:23]} Qd2+ {[%emt 0:00:08]} 34. Ke4 {[%emt 0:00:29]} Rh4+ {[%emt 0:00:14]} 35. f4 {[%emt 0:00:11]} Rxf4# {[%emt 0:38:51]} 0-1